[Event "*** Titled Tuesday Blitz"]
[Site "Chess.com"]
[Date "2018.11.06"]
[Round "5"]
[White "AkibaRubi"]
[Black "norwaytoadog"]
[Result "0-1"]
[WhiteElo "2485"]
[BlackElo "2157"]
[TimeControl "180+2"]
[EndTime "14:05:01 PST"]
[Termination "norwaytoadog won on time"]

1. d4 {[%clk 0:03:01.9]} 1... Nf6 {[%clk 0:02:59.9]} 2. c4 {[%clk 0:03:02.8]}
2... e6 {[%clk 0:03:01.1]} 3. Nc3 {[%clk 0:03:02.9]} 3... Bb4 {[%clk 0:03:02]}
4. e3 {[%clk 0:03:01.8]} 4... c5 {[%clk 0:03:01.2]} 5. Nf3 {[%clk 0:03:01.3]}
5... O-O {[%clk 0:02:59.1]} 6. Be2 {[%clk 0:02:59.6]} 6... Bxc3+ {[%clk
0:02:53.3]} 7. bxc3 {[%clk 0:02:59.9]} 7... d6 {[%clk 0:02:53.9]} 8. O-O {[%clk
0:03:00.4]} 8... Nc6 {[%clk 0:02:54.8]} 9. d5 {[%clk 0:02:29.9]} 9... exd5
{[%clk 0:02:54.8]} 10. cxd5 {[%clk 0:02:31.8]} 10... Ne7 {[%clk 0:02:48]} 11. c4
{[%clk 0:02:31.4]} 11... Ng6 {[%clk 0:02:39.8]} 12. Bb2 {[%clk 0:02:28.5]} 12...
Ne4 {[%clk 0:02:29.1]} 13. Bd3 {[%clk 0:02:05.4]} 13... f5 {[%clk 0:02:26.2]}
14. Nd2 {[%clk 0:01:56.9]} 14... Qe7 {[%clk 0:01:47.5]} 15. Nxe4 {[%clk
0:01:50.9]} 15... fxe4 {[%clk 0:01:47.7]} 16. Bc2 {[%clk 0:01:47]} 16... Bf5
{[%clk 0:01:33]} 17. f3 {[%clk 0:01:15.4]} 17... Rae8 {[%clk 0:01:11.3]} 18.
fxe4 {[%clk 0:00:55.3]} 18... Bxe4 {[%clk 0:01:07.9]} 19. Rxf8+ {[%clk
0:00:54.3]} 19... Rxf8 {[%clk 0:01:07.9]} 20. Bxe4 {[%clk 0:00:51.6]} 20... Qxe4
{[%clk 0:01:08.5]} 21. Qb3 {[%clk 0:00:40.5]} 21... Nh4 {[%clk 0:01:05.8]} 0-1

[Event "*** Titled Tuesday Blitz"]
[Site "Chess.com"]
[Date "2018.11.06"]
[Round "5"]
[White "Maikrosoft63"]
[Black "pulvettd"]
[Result "0-1"]
[WhiteElo "2527"]
[BlackElo "2522"]
[TimeControl "180+2"]
[EndTime "14:05:10 PST"]
[Termination "pulvettd won by resignation"]

1. e4 {[%clk 0:03:01.7]} 1... c5 {[%clk 0:02:58.3]} 2. Nf3 {[%clk 0:03:02.6]}
2... d6 {[%clk 0:02:59.6]} 3. d4 {[%clk 0:03:03.4]} 3... cxd4 {[%clk 0:03:01.5]}
4. Nxd4 {[%clk 0:03:05.2]} 4... Nf6 {[%clk 0:03:00.7]} 5. Nc3 {[%clk 0:03:06.3]}
5... a6 {[%clk 0:03:02]} 6. Be3 {[%clk 0:03:07.4]} 6... e5 {[%clk 0:03:01.2]} 7.
Nb3 {[%clk 0:03:08.2]} 7... Be6 {[%clk 0:03:00.9]} 8. Qd2 {[%clk 0:03:09.2]}
8... Nbd7 {[%clk 0:02:57.2]} 9. O-O-O {[%clk 0:03:09.6]} 9... Rc8 {[%clk
0:02:55.7]} 10. f4 {[%clk 0:03:08.8]} 10... b5 {[%clk 0:02:54.8]} 11. f5 {[%clk
0:03:09.6]} 11... Bc4 {[%clk 0:02:54.9]} 12. Kb1 {[%clk 0:03:10.9]} 12... b4
{[%clk 0:02:39.6]} 13. Nd5 {[%clk 0:03:11.4]} 13... Nxe4 {[%clk 0:02:33.7]} 14.
Qxb4 {[%clk 0:03:10.6]} 14... Bxd5 {[%clk 0:02:32.3]} 15. Rxd5 {[%clk
0:03:08.7]} 15... Nef6 {[%clk 0:02:34.2]} 16. Ra5 {[%clk 0:03:02.5]} 16... Qc7
{[%clk 0:02:31.4]} 17. Bxa6 {[%clk 0:02:28.7]} 17... Qxc2+ {[%clk 0:02:26.1]}
18. Ka1 {[%clk 0:02:29.9]} 18... Rb8 {[%clk 0:02:21.4]} 19. Qa4 {[%clk
0:02:29.8]} 19... Be7 {[%clk 0:02:13.2]} 20. Rc1 {[%clk 0:02:19.7]} 20... Qxg2
{[%clk 0:02:12.1]} 21. Bb5 {[%clk 0:02:20.7]} 21... O-O {[%clk 0:01:45.2]} 22.
Bxd7 {[%clk 0:02:17.6]} 22... d5 {[%clk 0:01:44.4]} 23. Bc5 {[%clk 0:02:09.4]}
23... Bxc5 {[%clk 0:01:36]} 24. Raxc5 {[%clk 0:02:08.6]} 24... Ra8 {[%clk
0:01:35.9]} 25. Ra5 {[%clk 0:02:01.1]} 25... Rxa5 {[%clk 0:01:32.8]} 26. Nxa5
{[%clk 0:02:02]} 26... Qxh2 {[%clk 0:01:30.5]} 27. a3 {[%clk 0:01:57.7]} 27...
e4 {[%clk 0:01:24.4]} 28. Rc8 {[%clk 0:01:55.4]} 28... Rxc8 {[%clk 0:01:11.3]}
29. Bxc8 {[%clk 0:01:57.3]} 29... h5 {[%clk 0:01:10.6]} 30. Qd4 {[%clk
0:01:47.3]} 30... Qc7 {[%clk 0:01:01.3]} 31. Qc3 {[%clk 0:01:31.4]} 31... Qxc3
{[%clk 0:01:01.9]} 32. bxc3 {[%clk 0:01:32.6]} 32... h4 {[%clk 0:01:03.2]} 33.
Ba6 {[%clk 0:01:33.3]} 33... h3 {[%clk 0:01:04.2]} 34. Bf1 {[%clk 0:01:33.8]}
34... h2 {[%clk 0:01:03.2]} 35. Bg2 {[%clk 0:01:35.3]} 35... e3 {[%clk
0:01:04.5]} 0-1

[Event "*** Titled Tuesday Blitz"]
[Site "Chess.com"]
[Date "2018.11.06"]
[Round "5"]
[White "novocane"]
[Black "gemarin"]
[Result "0-1"]
[WhiteElo "2151"]
[BlackElo "2072"]
[TimeControl "180+2"]
[EndTime "14:05:12 PST"]
[Termination "gemarin won by checkmate"]

1. d4 {[%clk 0:03:01.9]} 1... d5 {[%clk 0:03:00.2]} 2. c4 {[%clk 0:03:03.1]}
2... c6 {[%clk 0:03:01.3]} 3. cxd5 {[%clk 0:03:04]} 3... cxd5 {[%clk 0:03:00.6]}
4. Bf4 {[%clk 0:03:05.4]} 4... Nc6 {[%clk 0:03:01.4]} 5. e3 {[%clk 0:03:06.9]}
5... Nf6 {[%clk 0:03:02.7]} 6. Nc3 {[%clk 0:03:04.6]} 6... e6 {[%clk 0:03:03.8]}
7. Bd3 {[%clk 0:03:05.1]} 7... Bd6 {[%clk 0:03:05.2]} 8. Bxd6 {[%clk 0:03:06.3]}
8... Qxd6 {[%clk 0:03:06.7]} 9. f4 {[%clk 0:03:08.2]} 9... O-O {[%clk
0:03:07.6]} 10. Nf3 {[%clk 0:03:09.4]} 10... a6 {[%clk 0:03:08.7]} 11. O-O
{[%clk 0:03:08.9]} 11... b5 {[%clk 0:03:09.9]} 12. Rc1 {[%clk 0:03:07.5]} 12...
Na5 {[%clk 0:03:10.6]} 13. Ne5 {[%clk 0:03:06.5]} 13... Bd7 {[%clk 0:03:10.9]}
14. Rf3 {[%clk 0:03:07.2]} 14... g6 {[%clk 0:03:05.4]} 15. Rh3 {[%clk 0:03:02]}
15... Rfc8 {[%clk 0:03:01.8]} 16. Qe1 {[%clk 0:02:50.6]} 16... Be8 {[%clk
0:02:58.2]} 17. Qh4 {[%clk 0:02:48.3]} 17... Qd8 {[%clk 0:02:47.9]} 18. Rf1
{[%clk 0:02:35.3]} 18... Nc4 {[%clk 0:02:40.7]} 19. Nd1 {[%clk 0:01:46.7]} 19...
Nd2 {[%clk 0:02:34]} 20. Re1 {[%clk 0:01:19.2]} 20... Nh5 {[%clk 0:02:26.5]} 21.
Qf2 {[%clk 0:01:10.6]} 21... Ne4 {[%clk 0:02:25.5]} 22. Bxe4 {[%clk 0:01:06.7]}
22... dxe4 {[%clk 0:02:26]} 23. g4 {[%clk 0:00:46]} 23... f6 {[%clk 0:02:11.5]}
24. gxh5 {[%clk 0:00:42.6]} 24... fxe5 {[%clk 0:02:11.2]} 25. hxg6 {[%clk
0:00:43.6]} 25... Bxg6 {[%clk 0:02:11.8]} 26. fxe5 {[%clk 0:00:36.1]} 26... Qd5
{[%clk 0:02:08]} 27. Nc3 {[%clk 0:00:35.7]} 27... Qd7 {[%clk 0:02:06.5]} 28. Qh4
{[%clk 0:00:31.6]} 28... b4 {[%clk 0:02:04.5]} 29. Nxe4 {[%clk 0:00:31.7]} 29...
Bxe4 {[%clk 0:02:02.5]} 30. Qxe4 {[%clk 0:00:32.5]} 30... Kh8 {[%clk 0:02:03.3]}
31. Kh1 {[%clk 0:00:31.7]} 31... Rg8 {[%clk 0:02:01.8]} 32. Rg1 {[%clk
0:00:22.6]} 32... Rxg1+ {[%clk 0:01:48.3]} 33. Kxg1 {[%clk 0:00:24.5]} 33...
Rg8+ {[%clk 0:01:49.2]} 34. Rg3 {[%clk 0:00:18]} 34... Rf8 {[%clk 0:01:48.6]}
35. Qg4 {[%clk 0:00:17.2]} 35... Qf7 {[%clk 0:01:48.3]} 36. Kg2 {[%clk
0:00:17.6]} 36... Qf1# {[%clk 0:01:47.3]} 0-1

[Event "*** Titled Tuesday Blitz"]
[Site "Chess.com"]
[Date "2018.11.06"]
[Round "5"]
[White "Alexander_Donchenko"]
[Black "ViktorMatviishen"]
[Result "0-1"]
[WhiteElo "2715"]
[BlackElo "2462"]
[TimeControl "180+2"]
[EndTime "14:05:16 PST"]
[Termination "ViktorMatviishen won by resignation"]

1. Nf3 {[%clk 0:03:01.9]} 1... Nf6 {[%clk 0:03:01]} 2. g3 {[%clk 0:03:02.8]}
2... d5 {[%clk 0:02:59.2]} 3. Bg2 {[%clk 0:03:04.1]} 3... Bg4 {[%clk 0:02:59.6]}
4. c4 {[%clk 0:03:03.9]} 4... c6 {[%clk 0:02:59]} 5. Ne5 {[%clk 0:03:04.9]} 5...
Bc8 {[%clk 0:02:57.6]} 6. cxd5 {[%clk 0:03:03.6]} 6... cxd5 {[%clk 0:02:58.8]}
7. Nc3 {[%clk 0:03:03.9]} 7... e6 {[%clk 0:02:58.2]} 8. O-O {[%clk 0:03:04.4]}
8... Be7 {[%clk 0:02:58.3]} 9. d4 {[%clk 0:03:04.3]} 9... O-O {[%clk 0:02:58]}
10. Bf4 {[%clk 0:03:03.6]} 10... a6 {[%clk 0:02:56.4]} 11. Rc1 {[%clk
0:03:03.8]} 11... Nbd7 {[%clk 0:02:55.5]} 12. Nd3 {[%clk 0:03:02]} 12... Nb6
{[%clk 0:02:44]} 13. Qb3 {[%clk 0:02:57.6]} 13... Bd7 {[%clk 0:02:41.5]} 14. Nc5
{[%clk 0:02:55]} 14... Bc6 {[%clk 0:02:40.3]} 15. a4 {[%clk 0:02:42.7]} 15...
Nc4 {[%clk 0:02:31.3]} 16. Nxb7 {[%clk 0:02:33.8]} 16... Bxb7 {[%clk 0:02:10.8]}
17. Qxb7 {[%clk 0:02:35.7]} 17... Bd6 {[%clk 0:02:10.6]} 18. Bxd6 {[%clk
0:02:20.2]} 18... Qxd6 {[%clk 0:02:11.5]} 19. Qb3 {[%clk 0:02:05.4]} 19... Nd2
{[%clk 0:02:12]} 20. Qc2 {[%clk 0:02:01.8]} 20... Nxf1 {[%clk 0:02:12.8]} 21.
Kxf1 {[%clk 0:01:59.8]} 21... Rab8 {[%clk 0:02:14.2]} 22. e3 {[%clk 0:01:55.1]}
22... Rfc8 {[%clk 0:02:12.4]} 23. Qe2 {[%clk 0:01:52.6]} 23... Qb6 {[%clk
0:02:10]} 24. Rc2 {[%clk 0:01:52.8]} 24... Ne8 {[%clk 0:02:03.2]} 25. Kg1 {[%clk
0:01:50.1]} 25... Nd6 {[%clk 0:02:04.3]} 26. Bf1 {[%clk 0:01:45]} 26... Nc4
{[%clk 0:02:03.8]} 27. Nd1 {[%clk 0:01:45.9]} 27... Qb3 {[%clk 0:02:00.4]} 28.
a5 {[%clk 0:01:22.6]} 28... Qb4 {[%clk 0:01:53.4]} 29. h4 {[%clk 0:01:20.1]}
29... Qxa5 {[%clk 0:01:51.3]} 30. Qh5 {[%clk 0:01:20.6]} 30... g6 {[%clk
0:01:48.1]} 31. Qg5 {[%clk 0:01:19.4]} 31... Qe1 {[%clk 0:01:45.1]} 32. h5
{[%clk 0:01:14.6]} 32... Qxd1 {[%clk 0:01:39.3]} 33. h6 {[%clk 0:01:15.5]} 33...
Qf3 {[%clk 0:01:26.7]} 34. Bd3 {[%clk 0:01:03.3]} 34... f6 {[%clk 0:01:15.7]}
35. Qh4 {[%clk 0:01:04.3]} 35... Qd1+ {[%clk 0:01:15.8]} 36. Kh2 {[%clk
0:00:59.6]} 36... Qxd3 {[%clk 0:01:16.6]} 37. Qxf6 {[%clk 0:00:59.8]} 37... Rc7
{[%clk 0:01:16.5]} 38. Qxe6+ {[%clk 0:01:00]} 38... Rf7 {[%clk 0:01:16.9]} 39.
Rc3 {[%clk 0:00:56.8]} 39... Qf5 {[%clk 0:01:15.3]} 0-1

[Event "*** Titled Tuesday Blitz"]
[Site "Chess.com"]
[Date "2018.11.06"]
[Round "5"]
[White "ohusbands"]
[Black "GianmarcoVaR"]
[Result "0-1"]
[WhiteElo "2521"]
[BlackElo "2530"]
[TimeControl "180+2"]
[EndTime "14:05:23 PST"]
[Termination "GianmarcoVaR won on time"]

1. e4 {[%clk 0:03:01.9]} 1... g6 {[%clk 0:03:00]} 2. d4 {[%clk 0:03:02.6]} 2...
Bg7 {[%clk 0:03:00.9]} 3. Nc3 {[%clk 0:03:04.5]} 3... d6 {[%clk 0:02:59.9]} 4.
Be3 {[%clk 0:03:05.9]} 4... a6 {[%clk 0:02:55.2]} 5. Qd2 {[%clk 0:03:05.5]} 5...
b5 {[%clk 0:02:55.5]} 6. Bd3 {[%clk 0:03:06.1]} 6... Bb7 {[%clk 0:02:53.8]} 7.
Nf3 {[%clk 0:03:04.4]} 7... Nd7 {[%clk 0:02:53.8]} 8. O-O {[%clk 0:03:05.5]}
8... c5 {[%clk 0:02:51.8]} 9. dxc5 {[%clk 0:03:04.9]} 9... Nxc5 {[%clk
0:02:52.7]} 10. Rfe1 {[%clk 0:02:47.1]} 10... Nf6 {[%clk 0:02:53.3]} 11. Bd4
{[%clk 0:02:39.5]} 11... Rc8 {[%clk 0:02:22.8]} 12. Rad1 {[%clk 0:02:35.2]}
12... O-O {[%clk 0:02:21.4]} 13. Qe3 {[%clk 0:02:34.3]} 13... e5 {[%clk
0:01:45.3]} 14. Bxc5 {[%clk 0:02:34.4]} 14... Rxc5 {[%clk 0:01:46.2]} 15. a3
{[%clk 0:02:23]} 15... Re8 {[%clk 0:01:32.9]} 16. Bf1 {[%clk 0:02:12.2]} 16...
Qc7 {[%clk 0:01:19.4]} 17. Nd2 {[%clk 0:01:54]} 17... d5 {[%clk 0:01:02.1]} 18.
exd5 {[%clk 0:01:55.3]} 18... Nxd5 {[%clk 0:01:02.7]} 19. Nxd5 {[%clk
0:01:56.7]} 19... Rxd5 {[%clk 0:01:03.4]} 20. c4 {[%clk 0:01:23.3]} 20... bxc4
{[%clk 0:01:03.5]} 21. Nxc4 {[%clk 0:01:25.2]} 21... Red8 {[%clk 0:01:04.8]} 22.
Rc1 {[%clk 0:01:20.5]} 22... Qe7 {[%clk 0:00:44.4]} 0-1

[Event "*** Titled Tuesday Blitz"]
[Site "Chess.com"]
[Date "2018.11.06"]
[Round "5"]
[White "Slovak_fighter2000"]
[Black "nitpicker"]
[Result "1-0"]
[WhiteElo "2291"]
[BlackElo "2182"]
[TimeControl "180+2"]
[EndTime "14:05:33 PST"]
[Termination "Slovak_fighter2000 won on time"]

1. d4 {[%clk 0:03:01.6]} 1... Nf6 {[%clk 0:02:55.9]} 2. c4 {[%clk 0:03:02.3]}
2... e6 {[%clk 0:02:56.1]} 3. Nc3 {[%clk 0:03:02.8]} 3... Bb4 {[%clk 0:02:55.7]}
4. e3 {[%clk 0:03:00.8]} 4... c5 {[%clk 0:02:54.9]} 5. Nf3 {[%clk 0:02:55.9]}
5... O-O {[%clk 0:02:52.2]} 6. Bd3 {[%clk 0:02:56.9]} 6... d5 {[%clk 0:02:52.7]}
7. O-O {[%clk 0:02:57.6]} 7... cxd4 {[%clk 0:02:53.5]} 8. exd4 {[%clk
0:02:56.8]} 8... dxc4 {[%clk 0:02:42.6]} 9. Bxc4 {[%clk 0:02:57.5]} 9... b6
{[%clk 0:02:43.3]} 10. Bg5 {[%clk 0:02:56.1]} 10... Bxc3 {[%clk 0:02:36.8]} 11.
bxc3 {[%clk 0:02:56.8]} 11... Bb7 {[%clk 0:02:32.3]} 12. Ne5 {[%clk 0:02:57]}
12... Qc7 {[%clk 0:02:15.5]} 13. Bd3 {[%clk 0:02:49.4]} 13... Nbd7 {[%clk
0:02:10.4]} 14. Nxd7 {[%clk 0:02:45.4]} 14... Nxd7 {[%clk 0:02:02.8]} 15. Qh5
{[%clk 0:02:44.8]} 15... f5 {[%clk 0:02:03.1]} 16. Rac1 {[%clk 0:02:40.4]} 16...
Qc6 {[%clk 0:01:56]} 17. f3 {[%clk 0:02:38.7]} 17... e5 {[%clk 0:01:45.2]} 18.
Rfe1 {[%clk 0:01:55.5]} 18... Qd5 {[%clk 0:01:32.9]} 19. Be3 {[%clk 0:01:38.5]}
19... g6 {[%clk 0:01:22.7]} 20. Qh4 {[%clk 0:01:35.9]} 20... Rae8 {[%clk
0:01:01.3]} 21. Bh6 {[%clk 0:01:32.6]} 21... Rf7 {[%clk 0:00:54.6]} 22. Rcd1
{[%clk 0:01:29.9]} 22... e4 {[%clk 0:00:40.6]} 23. Bc2 {[%clk 0:01:15.9]} 23...
Qd6 {[%clk 0:00:15]} 24. Bb3 {[%clk 0:01:11.5]} 24... Bd5 {[%clk 0:00:15]} 25.
c4 {[%clk 0:01:11]} 25... Bb7 {[%clk 0:00:03.8]} 26. c5 {[%clk 0:01:08.3]} 26...
bxc5 {[%clk 0:00:04.8]} 27. dxc5 {[%clk 0:01:07.5]} 27... Qxc5+ {[%clk
0:00:04.5]} 28. Kh1 {[%clk 0:01:08.9]} 1-0

[Event "*** Titled Tuesday Blitz"]
[Site "Chess.com"]
[Date "2018.11.06"]
[Round "5"]
[White "nearestway"]
[Black "TigranLPetrosyan"]
[Result "1-0"]
[WhiteElo "2533"]
[BlackElo "2817"]
[TimeControl "180+2"]
[EndTime "14:05:35 PST"]
[Termination "nearestway won by resignation"]

1. Nf3 {[%clk 0:03:01.9]} 1... Nf6 {[%clk 0:03:00.2]} 2. c4 {[%clk 0:03:02.4]}
2... g6 {[%clk 0:03:02.1]} 3. Nc3 {[%clk 0:03:00.2]} 3... Bg7 {[%clk 0:03:04]}
4. e4 {[%clk 0:03:00.8]} 4... c5 {[%clk 0:02:58.8]} 5. d4 {[%clk 0:02:57]} 5...
cxd4 {[%clk 0:02:59.4]} 6. Nxd4 {[%clk 0:02:58.9]} 6... d6 {[%clk 0:02:59.8]} 7.
Be2 {[%clk 0:02:58.1]} 7... Nc6 {[%clk 0:02:54.8]} 8. Be3 {[%clk 0:02:58.1]}
8... O-O {[%clk 0:02:55.9]} 9. O-O {[%clk 0:02:58.3]} 9... Bd7 {[%clk
0:02:56.9]} 10. Nc2 {[%clk 0:02:57.9]} 10... Rc8 {[%clk 0:02:52.8]} 11. Rc1
{[%clk 0:02:53.5]} 11... Qa5 {[%clk 0:02:52.5]} 12. f4 {[%clk 0:02:50.2]} 12...
Rfd8 {[%clk 0:02:26]} 13. Rb1 {[%clk 0:02:45]} 13... a6 {[%clk 0:02:22.3]} 14.
b4 {[%clk 0:02:43.4]} 14... Qc7 {[%clk 0:02:23.1]} 15. a4 {[%clk 0:02:43.4]}
15... e6 {[%clk 0:02:15.3]} 16. a5 {[%clk 0:02:42.2]} 16... Qb8 {[%clk
0:02:14.5]} 17. Bb6 {[%clk 0:02:42.6]} 17... Re8 {[%clk 0:02:10.8]} 18. Qd2
{[%clk 0:02:43.8]} 18... Re7 {[%clk 0:02:06]} 19. b5 {[%clk 0:02:42.5]} 19...
axb5 {[%clk 0:02:01]} 20. cxb5 {[%clk 0:02:44.4]} 20... Na7 {[%clk 0:02:02.4]}
21. Rb3 {[%clk 0:02:40.9]} 21... Ree8 {[%clk 0:02:00.5]} 22. Ne3 {[%clk
0:02:31.9]} 22... Rxc3 {[%clk 0:01:57.6]} 23. Qxc3 {[%clk 0:02:32.6]} 23... Nxe4
{[%clk 0:01:59.5]} 24. Qb4 {[%clk 0:02:25.8]} 24... d5 {[%clk 0:02:00.8]} 25.
Bd4 {[%clk 0:02:24.2]} 25... Bf8 {[%clk 0:01:54.8]} 26. Qe1 {[%clk 0:02:25.1]}
26... Nc8 {[%clk 0:01:56.3]} 27. Rb2 {[%clk 0:02:23.8]} 27... Ncd6 {[%clk
0:01:55.9]} 28. a6 {[%clk 0:02:20.6]} 28... Bg7 {[%clk 0:01:56.6]} 29. Bxg7
{[%clk 0:02:15.9]} 29... Kxg7 {[%clk 0:01:58.5]} 30. Qb4 {[%clk 0:02:12.3]}
30... f6 {[%clk 0:01:54]} 31. Qd4 {[%clk 0:02:13.1]} 31... b6 {[%clk 0:01:48.3]}
32. Kh1 {[%clk 0:02:13.7]} 32... h5 {[%clk 0:01:47.7]} 33. Ra1 {[%clk
0:02:11.3]} 33... Qa7 {[%clk 0:01:47.3]} 34. Rc1 {[%clk 0:02:07.3]} 34... h4
{[%clk 0:01:40]} 35. Rbc2 {[%clk 0:02:04]} 35... Rc8 {[%clk 0:01:39.8]} 36. Rxc8
{[%clk 0:02:02.6]} 36... Nxc8 {[%clk 0:01:39.4]} 37. Bf3 {[%clk 0:02:03.7]}
37... Ned6 {[%clk 0:01:33.1]} 38. f5 {[%clk 0:02:01.8]} 38... gxf5 {[%clk
0:01:28]} 39. Qxh4 {[%clk 0:02:00.9]} 39... Qb8 {[%clk 0:01:18.9]} 40. Qg3+
{[%clk 0:01:55.7]} 40... Kf8 {[%clk 0:01:18]} 41. Nxf5 {[%clk 0:01:53.6]} 41...
exf5 {[%clk 0:01:18.1]} 42. Bxd5 {[%clk 0:01:52.9]} 1-0

[Event "*** Titled Tuesday Blitz"]
[Site "Chess.com"]
[Date "2018.11.06"]
[Round "5"]
[White "sandager"]
[Black "Perecke"]
[Result "1-0"]
[WhiteElo "2129"]
[BlackElo "1981"]
[TimeControl "180+2"]
[EndTime "14:05:40 PST"]
[Termination "sandager won by resignation"]

1. e4 {[%clk 0:03:01.9]} 1... e5 {[%clk 0:03:00.9]} 2. Nf3 {[%clk 0:03:01.8]}
2... Nc6 {[%clk 0:03:02.2]} 3. Bb5 {[%clk 0:03:01.8]} 3... a6 {[%clk 0:03:03.4]}
4. Ba4 {[%clk 0:03:02.3]} 4... Nf6 {[%clk 0:03:04.7]} 5. O-O {[%clk 0:03:02.6]}
5... Be7 {[%clk 0:03:05.6]} 6. Re1 {[%clk 0:03:03]} 6... b5 {[%clk 0:03:06.6]}
7. Bb3 {[%clk 0:03:03.9]} 7... d6 {[%clk 0:03:08.5]} 8. c3 {[%clk 0:03:04.7]}
8... O-O {[%clk 0:03:09.4]} 9. h3 {[%clk 0:03:05.9]} 9... Na5 {[%clk 0:03:10.5]}
10. Bc2 {[%clk 0:03:06.1]} 10... c5 {[%clk 0:03:12.1]} 11. d4 {[%clk 0:03:07.5]}
11... Qc7 {[%clk 0:03:13.5]} 12. Nbd2 {[%clk 0:03:08.6]} 12... cxd4 {[%clk
0:03:14.5]} 13. cxd4 {[%clk 0:03:08.9]} 13... Nc6 {[%clk 0:03:16.3]} 14. Nb3
{[%clk 0:02:58]} 14... a5 {[%clk 0:03:17]} 15. a4 {[%clk 0:02:53.2]} 15... Nb4
{[%clk 0:03:09.8]} 16. Bb1 {[%clk 0:02:51.9]} 16... bxa4 {[%clk 0:03:11.1]} 17.
Rxa4 {[%clk 0:02:51.8]} 17... Bd7 {[%clk 0:03:12.7]} 18. Ra1 {[%clk 0:02:50.8]}
18... a4 {[%clk 0:03:13.8]} 19. Nbd2 {[%clk 0:02:47.6]} 19... Nc6 {[%clk
0:03:07.5]} 20. Nf1 {[%clk 0:02:45.6]} 20... Qb6 {[%clk 0:03:03.3]} 21. d5
{[%clk 0:02:32.6]} 21... Na5 {[%clk 0:02:58.1]} 22. Re2 {[%clk 0:02:25.4]} 22...
Nb3 {[%clk 0:02:58.4]} 23. Be3 {[%clk 0:02:19]} 23... Qb7 {[%clk 0:02:54.4]} 24.
Ra3 {[%clk 0:02:18.4]} 24... Bb5 {[%clk 0:02:50.8]} 25. Bd3 {[%clk 0:02:10.2]}
25... Rfc8 {[%clk 0:02:17.9]} 26. Ng3 {[%clk 0:02:06.7]} 26... g6 {[%clk
0:02:09]} 27. Kh2 {[%clk 0:02:02.8]} 27... Nd7 {[%clk 0:02:10]} 28. Bxb5 {[%clk
0:01:18.4]} 28... Qxb5 {[%clk 0:02:10.9]} 29. Rc2 {[%clk 0:01:18.6]} 29... Ndc5
{[%clk 0:02:05.4]} 30. Nd2 {[%clk 0:01:07.7]} 30... Nxd2 {[%clk 0:01:14.2]} 31.
Qxd2 {[%clk 0:01:00.5]} 31... Nb3 {[%clk 0:01:11.9]} 32. Rxc8+ {[%clk
0:00:48.7]} 32... Rxc8 {[%clk 0:01:11.8]} 33. Qe2 {[%clk 0:00:44]} 33... Qb4
{[%clk 0:01:05.2]} 34. Qa6 {[%clk 0:00:34.9]} 34... Nc5 {[%clk 0:01:05.2]} 35.
Qxc8+ {[%clk 0:00:34.3]} 1-0

[Event "*** Titled Tuesday Blitz"]
[Site "Chess.com"]
[Date "2018.11.06"]
[Round "5"]
[White "Jbd735"]
[Black "LastGladiator1"]
[Result "1-0"]
[WhiteElo "2487"]
[BlackElo "2617"]
[TimeControl "180+2"]
[EndTime "14:05:50 PST"]
[Termination "Jbd735 won by checkmate"]

1. e4 {[%clk 0:03:01.9]} 1... e6 {[%clk 0:03:01.2]} 2. d4 {[%clk 0:03:02.4]}
2... d5 {[%clk 0:03:02.2]} 3. Nc3 {[%clk 0:03:03.6]} 3... Nf6 {[%clk 0:03:02.5]}
4. Bg5 {[%clk 0:03:03.2]} 4... Be7 {[%clk 0:03:03.9]} 5. e5 {[%clk 0:03:04.3]}
5... Nfd7 {[%clk 0:03:04.8]} 6. h4 {[%clk 0:03:05.5]} 6... h6 {[%clk 0:03:05.6]}
7. Bxe7 {[%clk 0:03:05.5]} 7... Qxe7 {[%clk 0:03:07.5]} 8. f4 {[%clk 0:03:06.4]}
8... O-O {[%clk 0:03:05.4]} 9. Nf3 {[%clk 0:03:06.5]} 9... c5 {[%clk 0:03:06.8]}
10. Qd2 {[%clk 0:02:52.9]} 10... Nc6 {[%clk 0:02:59.9]} 11. dxc5 {[%clk
0:02:39]} 11... Qxc5 {[%clk 0:02:46.5]} 12. O-O-O {[%clk 0:02:37.2]} 12... a6
{[%clk 0:02:47.7]} 13. h5 {[%clk 0:02:30.5]} 13... b5 {[%clk 0:02:46.7]} 14. g4
{[%clk 0:02:27.7]} 14... f6 {[%clk 0:02:42.5]} 15. exf6 {[%clk 0:02:18.2]} 15...
Nxf6 {[%clk 0:02:43]} 16. Bd3 {[%clk 0:01:27.1]} 16... Nxg4 {[%clk 0:02:31.3]}
17. Rdg1 {[%clk 0:01:11.1]} 17... Nf2 {[%clk 0:01:31.2]} 18. Rh2 {[%clk
0:01:06]} 18... Nxd3+ {[%clk 0:01:32]} 19. Qxd3 {[%clk 0:01:06.5]} 19... Ne5
{[%clk 0:00:52]} 20. Rxg7+ {[%clk 0:00:31.6]} 20... Kxg7 {[%clk 0:00:52.4]} 21.
Rg2+ {[%clk 0:00:31.9]} 21... Kf6 {[%clk 0:00:50.8]} 22. Qh7 {[%clk 0:00:14.6]}
22... Qe3+ {[%clk 0:00:39.1]} 23. Kb1 {[%clk 0:00:09.7]} 23... Qxf4 {[%clk
0:00:30.3]} 24. Qg7+ {[%clk 0:00:08.3]} 24... Kf5 {[%clk 0:00:26.5]} 25. Qxf8+
{[%clk 0:00:09.1]} 25... Nf7 {[%clk 0:00:23.7]} 26. Qxf7# {[%clk 0:00:10]} 1-0